[Event "Titled Tuesday Blitz August 22 Early 2023"]
[White "Ganiev, Roman"]
[Black "kaanadayhamle"]
[WhiteFideId "4131452"]
[WhiteElo "2569"]
[BlackElo "2356"]
[Result "1-0"]
[Round "8"]
[TimeControl "180+1"]
[Date "2023.08.22"]
[WhiteClock "0:00:04"]
[BlackClock "0:00:06"]
[Board "90"]

1. e4 {[%clk 0:03:00]}  c6 {[%clk 0:02:58]} 2. d4 {[%clk 0:03:00]}  d5 {[%clk 0:02:57]} 3. Nc3 {[%clk 0:03:00]}  dxe4 {[%clk 0:02:55]} 4. Nxe4 {[%clk 0:03:01]}  Bf5 {[%clk 0:02:55]} 5. Ng3 {[%clk 0:03:01]}  Bg6 {[%clk 0:02:55]} 6. Bc4 {[%clk 0:03:01]}  e6 {[%clk 0:02:55]} 7. N1e2 {[%clk 0:02:58]}  Bd6 {[%clk 0:02:55]} 8. h4 {[%clk 0:02:56]}  h5 {[%clk 0:02:46]} 9. Nf4 {[%clk 0:02:54]}  Bxf4 {[%clk 0:02:45]} 10. Bxf4 {[%clk 0:02:54]}  Nf6 {[%clk 0:02:45]} 11. c3 {[%clk 0:02:53]}  Nd5 {[%clk 0:02:38]} 12. Bg5 {[%clk 0:02:53]}  Qc7 {[%clk 0:02:38]} 13. Qd2 {[%clk 0:02:46]}  Nd7 {[%clk 0:02:38]} 14. O-O {[%clk 0:02:45]}  N7f6 {[%clk 0:02:31]} 15. Rfe1 {[%clk 0:02:28]}  O-O-O {[%clk 0:02:00]} 16. a4 {[%clk 0:02:25]}  Nb6 {[%clk 0:01:53]} 17. Bb3 {[%clk 0:02:21]}  Nbd5 {[%clk 0:01:41]} 18. c4 {[%clk 0:02:04]}  Ne7 {[%clk 0:01:40]} 19. Bf4 {[%clk 0:01:58]}  Qd7 {[%clk 0:01:40]} 20. Qa5 {[%clk 0:01:57]}  b6 {[%clk 0:01:36]} 21. Qe5 {[%clk 0:01:47]}  Qb7 {[%clk 0:01:30]} 22. a5 {[%clk 0:01:26]}  bxa5 {[%clk 0:01:00]} 23. Ba4 {[%clk 0:01:05]}  Ng4 {[%clk 0:00:46]} 24. Qxa5 {[%clk 0:01:04]}  Qb6 {[%clk 0:00:46]} 25. Qc3 {[%clk 0:00:33]}  Qxd4 {[%clk 0:00:35]} 26. Qf3 {[%clk 0:00:33]}  Kb7 {[%clk 0:00:20]} 27. b4 {[%clk 0:00:18]}  e5 {[%clk 0:00:15]} 28. Bg5 {[%clk 0:00:15]}  f6 {[%clk 0:00:13]} 29. Be3 {[%clk 0:00:08]}  e4 {[%clk 0:00:11]} 30. Bxd4 {[%clk 0:00:07]}  exf3 {[%clk 0:00:12]} 31. Rxe7+ {[%clk 0:00:06]}  Kc8 {[%clk 0:00:11]} 32. Bc5 {[%clk 0:00:04]}  fxg2 {[%clk 0:00:10]} 33. Bxc6 {[%clk 0:00:04]}  Ne5 {[%clk 0:00:06]} 34. Bb7+ {[%clk 0:00:04]} 1-0


[Site "https://www.chess.com"]

[Event "Titled Tuesday Blitz August 22 Early 2023"]
[White "Skaric, Djuro"]
[Black "Shukhman, Anna"]
[WhiteFideId "934569"]
[BlackFideId "54180058"]
[WhiteElo "2349"]
[BlackElo "2567"]
[Result "1-0"]
[Round "8"]
[TimeControl "180+1"]
[Date "2023.08.22"]
[WhiteClock "0:00:17"]
[BlackClock "0:00:04"]
[Board "91"]

1. g3 {[%clk 0:03:00]}  Nf6 {[%clk 0:02:58]} 2. Bg2 {[%clk 0:03:01]}  g6 {[%clk 0:02:59]} 3. d3 {[%clk 0:03:01]}  Bg7 {[%clk 0:03:00]} 4. Nc3 {[%clk 0:03:01]}  O-O {[%clk 0:03:01]} 5. e4 {[%clk 0:03:02]}  d6 {[%clk 0:03:01]} 6. f4 {[%clk 0:03:02]}  c5 {[%clk 0:03:01]} 7. Nf3 {[%clk 0:03:03]}  Nc6 {[%clk 0:03:02]} 8. O-O {[%clk 0:03:03]}  a6 {[%clk 0:03:02]} 9. a4 {[%clk 0:03:02]}  Rb8 {[%clk 0:03:02]} 10. h3 {[%clk 0:03:03]}  b5 {[%clk 0:03:02]} 11. axb5 {[%clk 0:03:03]}  axb5 {[%clk 0:03:03]} 12. g4 {[%clk 0:03:03]}  b4 {[%clk 0:03:03]} 13. Ne2 {[%clk 0:03:03]}  c4 {[%clk 0:03:03]} 14. Ng3 {[%clk 0:03:02]}  Qb6+ {[%clk 0:03:01]} 15. d4 {[%clk 0:03:02]}  e5 {[%clk 0:02:59]} 16. fxe5 {[%clk 0:02:59]}  dxe5 {[%clk 0:02:59]} 17. Be3 {[%clk 0:02:59]}  Rd8 {[%clk 0:02:53]} 18. c3 {[%clk 0:02:29]}  Bxg4 {[%clk 0:02:47]} 19. Qd2 {[%clk 0:02:19]}  Bxf3 {[%clk 0:02:44]} 20. d5 {[%clk 0:02:20]}  bxc3 {[%clk 0:02:43]} 21. bxc3 {[%clk 0:02:19]}  Qc7 {[%clk 0:01:56]} 22. Rxf3 {[%clk 0:02:15]}  Nxe4 {[%clk 0:01:48]} 23. Nxe4 {[%clk 0:02:14]}  f5 {[%clk 0:01:48]} 24. Nc5 {[%clk 0:02:13]}  Ne7 {[%clk 0:01:47]} 25. Ne6 {[%clk 0:02:12]}  Qd6 {[%clk 0:01:45]} 26. Nxd8 {[%clk 0:02:12]}  Rxd8 {[%clk 0:01:46]} 27. Qf2 {[%clk 0:02:08]}  e4 {[%clk 0:01:41]} 28. Bc5 {[%clk 0:02:04]}  Qxd5 {[%clk 0:01:36]} 29. Bxe7 {[%clk 0:02:04]}  Re8 {[%clk 0:01:36]} 30. Bb4 {[%clk 0:01:51]}  exf3 {[%clk 0:01:35]} 31. Qxf3 {[%clk 0:01:51]}  Qxf3 {[%clk 0:01:15]} 32. Bxf3 {[%clk 0:01:51]}  Bf6 {[%clk 0:01:15]} 33. Bd5+ {[%clk 0:01:51]}  Kg7 {[%clk 0:01:15]} 34. Ra7+ {[%clk 0:01:48]}  Kh6 {[%clk 0:01:15]} 35. Rc7 {[%clk 0:01:41]}  Re3 {[%clk 0:01:07]} 36. Rc8 {[%clk 0:01:35]}  Bxc3 {[%clk 0:01:05]} 37. Bxc3 {[%clk 0:01:33]}  Rxc3 {[%clk 0:01:05]} 38. Kg2 {[%clk 0:01:34]}  Rc2+ {[%clk 0:01:04]} 39. Kg3 {[%clk 0:01:33]}  c3 {[%clk 0:01:04]} 40. Rc7 {[%clk 0:01:33]}  Kg5 {[%clk 0:00:58]} 41. Rxh7 {[%clk 0:01:29]}  f4+ {[%clk 0:00:54]} 42. Kf3 {[%clk 0:01:28]}  Rc1 {[%clk 0:00:54]} 43. Rc7 {[%clk 0:01:27]}  c2 {[%clk 0:00:54]} 44. h4+ {[%clk 0:01:03]}  Kxh4 {[%clk 0:00:48]} 45. Kg2 {[%clk 0:00:41]}  Kg5 {[%clk 0:00:44]} 46. Be4 {[%clk 0:00:38]}  Re1 {[%clk 0:00:41]} 47. Bxc2 {[%clk 0:00:36]}  Re2+ {[%clk 0:00:41]} 48. Kf3 {[%clk 0:00:35]}  Re3+ {[%clk 0:00:41]} 49. Kf2 {[%clk 0:00:36]}  Re6 {[%clk 0:00:41]} 50. Rc4 {[%clk 0:00:34]}  Rd6 {[%clk 0:00:40]} 51. Be4 {[%clk 0:00:32]}  Kg4 {[%clk 0:00:38]} 52. Bf3+ {[%clk 0:00:30]}  Kg5 {[%clk 0:00:37]} 53. Rc5+ {[%clk 0:00:30]}  Kf6 {[%clk 0:00:38]} 54. Be4 {[%clk 0:00:30]}  g5 {[%clk 0:00:36]} 55. Kf3 {[%clk 0:00:29]}  Rd1 {[%clk 0:00:23]} 56. Rf5+ {[%clk 0:00:28]}  Ke6 {[%clk 0:00:23]} 57. Rxg5 {[%clk 0:00:28]}  Rf1+ {[%clk 0:00:24]} 58. Ke2 {[%clk 0:00:26]}  Ra1 {[%clk 0:00:23]} 59. Bd3 {[%clk 0:00:25]}  Ra3 {[%clk 0:00:22]} 60. Kd2 {[%clk 0:00:23]}  Ra2+ {[%clk 0:00:21]} 61. Kc3 {[%clk 0:00:23]}  f3 {[%clk 0:00:20]} 62. Kd4 {[%clk 0:00:23]}  Ra4+ {[%clk 0:00:19]} 63. Ke3 {[%clk 0:00:23]}  Kf6 {[%clk 0:00:18]} 64. Rf5+ {[%clk 0:00:23]}  Ke6 {[%clk 0:00:18]} 65. Rxf3 {[%clk 0:00:24]}  Ra3 {[%clk 0:00:18]} 66. Kd4 {[%clk 0:00:24]}  Ra4+ {[%clk 0:00:18]} 67. Bc4+ {[%clk 0:00:24]}  Ke7 {[%clk 0:00:18]} 68. Rf7+ {[%clk 0:00:24]}  Ke8 {[%clk 0:00:17]} 69. Rh7 {[%clk 0:00:23]}  Ra1 {[%clk 0:00:17]} 70. Bd5 {[%clk 0:00:22]}  Re1 {[%clk 0:00:14]} 71. Kc5 {[%clk 0:00:21]}  Kf8 {[%clk 0:00:10]} 72. Kd6 {[%clk 0:00:21]}  Rd1 {[%clk 0:00:10]} 73. Rf7+ {[%clk 0:00:21]}  Ke8 {[%clk 0:00:10]} 74. Rg7 {[%clk 0:00:21]}  Rf1 {[%clk 0:00:09]} 75. Rg8+ {[%clk 0:00:19]}  Rf8 {[%clk 0:00:09]} 76. Rg7 {[%clk 0:00:19]}  Rf1 {[%clk 0:00:05]} 77. Rb7 {[%clk 0:00:17]}  Rf2 {[%clk 0:00:04]} 78. Rb8# {[%clk 0:00:17]} 1-0


[Site "https://www.chess.com"]

[Event "Titled Tuesday Blitz August 22 Early 2023"]
[White "Acosta Cruz, Oscar Yosimar"]
[Black "Willy, Stephen"]
[WhiteFideId "5111269"]
[BlackFideId "30981468"]
[WhiteElo "2298"]
[BlackElo "2556"]
[Result "0-1"]
[Round "8"]
[TimeControl "180+1"]
[Date "2023.08.22"]
[WhiteClock "0:00:00"]
[BlackClock "0:00:05"]
[Board "94"]

1. d4 {[%clk 0:03:00]}  d5 {[%clk 0:02:56]} 2. c4 {[%clk 0:02:58]}  e6 {[%clk 0:02:56]} 3. Nc3 {[%clk 0:02:56]}  c5 {[%clk 0:02:55]} 4. cxd5 {[%clk 0:02:50]}  cxd4 {[%clk 0:02:53]} 5. Qa4+ {[%clk 0:02:47]}  Bd7 {[%clk 0:02:51]} 6. Qxd4 {[%clk 0:02:46]}  exd5 {[%clk 0:02:51]} 7. Qxd5 {[%clk 0:02:41]}  Nf6 {[%clk 0:02:50]} 8. Qxb7 {[%clk 0:02:31]}  Nc6 {[%clk 0:02:49]} 9. Bf4 {[%clk 0:02:26]}  Bb4 {[%clk 0:02:44]} 10. Rd1 {[%clk 0:02:20]}  O-O {[%clk 0:02:34]} 11. g3 {[%clk 0:02:09]}  Qa5 {[%clk 0:02:17]} 12. Qc7 {[%clk 0:02:08]}  Qxa2 {[%clk 0:02:13]} 13. Bc1 {[%clk 0:02:08]}  Rac8 {[%clk 0:02:08]} 14. Qf4 {[%clk 0:02:01]}  Nd5 {[%clk 0:01:55]} 15. Rxd5 {[%clk 0:01:54]}  Qxd5 {[%clk 0:01:51]} 16. Nf3 {[%clk 0:01:53]}  Rfd8 {[%clk 0:01:39]} 17. Bg2 {[%clk 0:01:49]}  Bxc3+ {[%clk 0:01:32]} 18. bxc3 {[%clk 0:01:48]}  Bh3 {[%clk 0:01:31]} 19. O-O {[%clk 0:01:43]}  Bxg2 {[%clk 0:01:30]} 20. Kxg2 {[%clk 0:01:44]}  f6 {[%clk 0:01:29]} 21. e4 {[%clk 0:01:36]}  Qc4 {[%clk 0:01:26]} 22. Qf5 {[%clk 0:01:29]}  Re8 {[%clk 0:01:19]} 23. Qd5+ {[%clk 0:01:24]}  Qxd5 {[%clk 0:01:18]} 24. exd5 {[%clk 0:01:25]}  Ne5 {[%clk 0:01:15]} 25. Nxe5 {[%clk 0:01:18]}  Rxe5 {[%clk 0:01:14]} 26. Rd1 {[%clk 0:01:18]}  Rd8 {[%clk 0:01:08]} 27. c4 {[%clk 0:01:14]}  Kf7 {[%clk 0:01:06]} 28. Be3 {[%clk 0:01:09]}  a5 {[%clk 0:00:53]} 29. Kf3 {[%clk 0:00:54]}  Rc8 {[%clk 0:00:44]} 30. c5 {[%clk 0:00:49]}  Ke7 {[%clk 0:00:28]} 31. c6 {[%clk 0:00:33]}  Kd6 {[%clk 0:00:20]} 32. Bf4 {[%clk 0:00:33]}  a4 {[%clk 0:00:17]} 33. Bxe5+ {[%clk 0:00:32]}  fxe5 {[%clk 0:00:17]} 34. Ke3 {[%clk 0:00:27]}  Rb8 {[%clk 0:00:17]} 35. Ra1 {[%clk 0:00:16]}  Rb4 {[%clk 0:00:16]} 36. Rc1 {[%clk 0:00:15]}  Rb8 {[%clk 0:00:13]} 37. Ra1 {[%clk 0:00:13]}  Kxd5 {[%clk 0:00:13]} 38. Rxa4 {[%clk 0:00:13]}  Kxc6 {[%clk 0:00:13]} 39. Ra7 {[%clk 0:00:13]}  Rg8 {[%clk 0:00:09]} 40. Ke4 {[%clk 0:00:13]}  Kd6 {[%clk 0:00:09]} 41. Ra6+ {[%clk 0:00:13]}  Ke7 {[%clk 0:00:09]} 42. Kxe5 {[%clk 0:00:13]}  Kf7 {[%clk 0:00:09]} 43. Ra7+ {[%clk 0:00:11]}  Kg6 {[%clk 0:00:09]} 44. Ra6+ {[%clk 0:00:12]}  Kf7 {[%clk 0:00:08]} 45. h4 {[%clk 0:00:11]}  Re8+ {[%clk 0:00:07]} 46. Kf4 {[%clk 0:00:12]}  Re2 {[%clk 0:00:08]} 47. f3 {[%clk 0:00:12]}  Rc2 {[%clk 0:00:06]} 48. Ra4 {[%clk 0:00:12]}  Kf6 {[%clk 0:00:04]} 49. Ra6+ {[%clk 0:00:11]}  Kf7 {[%clk 0:00:05]} 50. Kg4 {[%clk 0:00:12]}  Rc3 {[%clk 0:00:05]} 51. f4 {[%clk 0:00:11]}  g6 {[%clk 0:00:06]} 52. Ra7+ {[%clk 0:00:10]}  Kg8 {[%clk 0:00:06]} 53. Rd7 {[%clk 0:00:07]}  h5+ {[%clk 0:00:05]} 54. Kg5 {[%clk 0:00:06]}  Rxg3+ {[%clk 0:00:05]} 55. Kh6 {[%clk 0:00:04]}  Rg4 {[%clk 0:00:04]} 56. Rg7+ {[%clk 0:00:04]}  Kf8 {[%clk 0:00:04]} 57. Rxg6 {[%clk 0:00:00]}  Rxh4 {[%clk 0:00:05]} 0-1


[Site "https://www.chess.com"]

[Event "Titled Tuesday Blitz August 22 Early 2023"]
[White "Hoang, Thi Bao Tram"]
[Black "DeyanKostov"]
[WhiteFideId "12401102"]
[WhiteElo "2683"]
[BlackElo "2473"]
[Result "1-0"]
[Round "8"]
[TimeControl "180+1"]
[Date "2023.08.22"]
[WhiteClock "0:00:12"]
[BlackClock "0:00:05"]
[Board "98"]

1. d4 {[%clk 0:03:00]}  d5 {[%clk 0:02:59]} 2. Nf3 {[%clk 0:03:00]}  Nf6 {[%clk 0:02:59]} 3. g3 {[%clk 0:03:00]}  Bf5 {[%clk 0:02:58]} 4. Bg2 {[%clk 0:03:00]}  e6 {[%clk 0:02:59]} 5. c4 {[%clk 0:02:58]}  c6 {[%clk 0:02:58]} 6. Qb3 {[%clk 0:02:56]}  Qb6 {[%clk 0:02:58]} 7. Nc3 {[%clk 0:02:55]}  Nbd7 {[%clk 0:02:56]} 8. O-O {[%clk 0:02:54]}  h6 {[%clk 0:02:55]} 9. Na4 {[%clk 0:02:43]}  Qxb3 {[%clk 0:02:38]} 10. axb3 {[%clk 0:02:42]}  b5 {[%clk 0:02:35]} 11. cxb5 {[%clk 0:02:39]}  cxb5 {[%clk 0:02:34]} 12. Nc3 {[%clk 0:02:39]}  Bb4 {[%clk 0:02:02]} 13. Nxb5 {[%clk 0:02:36]}  Ke7 {[%clk 0:02:01]} 14. Bf4 {[%clk 0:02:33]}  g5 {[%clk 0:01:58]} 15. Bd2 {[%clk 0:02:21]}  a5 {[%clk 0:01:51]} 16. Rfc1 {[%clk 0:01:37]}  Rhb8 {[%clk 0:01:47]} 17. Na3 {[%clk 0:01:30]}  Ne4 {[%clk 0:01:44]} 18. Be3 {[%clk 0:01:26]}  Kd6 {[%clk 0:01:39]} 19. Nc2 {[%clk 0:01:18]}  Rc8 {[%clk 0:01:36]} 20. Nxb4 {[%clk 0:01:15]}  axb4 {[%clk 0:01:32]} 21. Ne1 {[%clk 0:01:15]}  Rxc1 {[%clk 0:01:31]} 22. Rxc1 {[%clk 0:01:13]}  Nef6 {[%clk 0:01:22]} 23. Bd2 {[%clk 0:01:11]}  Rb8 {[%clk 0:01:19]} 24. Ra1 {[%clk 0:01:09]}  Ne4 {[%clk 0:01:18]} 25. Bxe4 {[%clk 0:01:03]}  Bxe4 {[%clk 0:01:13]} 26. Ra4 {[%clk 0:01:03]}  Rb6 {[%clk 0:00:44]} 27. f3 {[%clk 0:01:01]}  Bg6 {[%clk 0:00:42]} 28. Kf2 {[%clk 0:01:01]}  Nb8 {[%clk 0:00:40]} 29. Rxb4 {[%clk 0:00:58]}  Rxb4 {[%clk 0:00:40]} 30. Bxb4+ {[%clk 0:00:58]}  Kc6 {[%clk 0:00:39]} 31. g4 {[%clk 0:00:43]}  Nd7 {[%clk 0:00:36]} 32. Kg3 {[%clk 0:00:29]}  h5 {[%clk 0:00:31]} 33. gxh5 {[%clk 0:00:27]}  Bxh5 {[%clk 0:00:31]} 34. Nd3 {[%clk 0:00:27]}  f6 {[%clk 0:00:25]} 35. Be7 {[%clk 0:00:23]}  Bg6 {[%clk 0:00:25]} 36. Nc5 {[%clk 0:00:20]}  Nxc5 {[%clk 0:00:18]} 37. dxc5 {[%clk 0:00:21]}  f5 {[%clk 0:00:11]} 38. b4 {[%clk 0:00:21]}  g4 {[%clk 0:00:06]} 39. fxg4 {[%clk 0:00:16]}  fxg4 {[%clk 0:00:07]} 40. Kxg4 {[%clk 0:00:16]}  e5 {[%clk 0:00:08]} 41. Kg5 {[%clk 0:00:15]}  Bh7 {[%clk 0:00:07]} 42. h4 {[%clk 0:00:15]}  d4 {[%clk 0:00:06]} 43. Bf6 {[%clk 0:00:15]}  Kd5 {[%clk 0:00:07]} 44. Kh6 {[%clk 0:00:13]}  Bf5 {[%clk 0:00:05]} 45. Kg5 {[%clk 0:00:13]}  Bh7 {[%clk 0:00:05]} 46. h5 {[%clk 0:00:10]}  e4 {[%clk 0:00:05]} 47. Kf4 {[%clk 0:00:10]}  d3 {[%clk 0:00:05]} 48. exd3 {[%clk 0:00:10]}  exd3 {[%clk 0:00:06]} 49. Ke3 {[%clk 0:00:11]}  Kc6 {[%clk 0:00:06]} 50. Bc3 {[%clk 0:00:11]}  Kb5 {[%clk 0:00:06]} 51. Kf4 {[%clk 0:00:11]}  Bg8 {[%clk 0:00:05]} 52. Kg5 {[%clk 0:00:11]}  Bh7 {[%clk 0:00:05]} 53. h6 {[%clk 0:00:12]}  Be4 {[%clk 0:00:05]} 54. Kf6 {[%clk 0:00:12]}  Bh7 {[%clk 0:00:05]} 55. Kg7 {[%clk 0:00:12]}  Be4 {[%clk 0:00:05]} 56. h7 {[%clk 0:00:12]} 1-0


[Site "https://www.chess.com"]

[Event "Titled Tuesday Blitz August 22 Early 2023"]
[White "GaiozNigalidze"]
[Black "Mmukka"]
[WhiteElo "2676"]
[BlackElo "2470"]
[Result "1-0"]
[Round "8"]
[TimeControl "180+1"]
[Date "2023.08.22"]
[WhiteClock "0:00:50"]
[BlackClock "0:00:02"]
[Board "99"]

1. d4 {[%clk 0:03:00]}  d5 {[%clk 0:02:59]} 2. c4 {[%clk 0:03:00]}  e6 {[%clk 0:02:59]} 3. Nc3 {[%clk 0:03:00]}  dxc4 {[%clk 0:02:59]} 4. Nf3 {[%clk 0:02:58]}  a6 {[%clk 0:02:31]} 5. e3 {[%clk 0:02:53]}  Nf6 {[%clk 0:02:31]} 6. Bxc4 {[%clk 0:02:52]}  c5 {[%clk 0:02:32]} 7. a4 {[%clk 0:02:52]}  Be7 {[%clk 0:02:31]} 8. O-O {[%clk 0:02:52]}  Nc6 {[%clk 0:02:31]} 9. Ba2 {[%clk 0:02:50]}  O-O {[%clk 0:02:29]} 10. Re1 {[%clk 0:02:50]}  Nb4 {[%clk 0:02:18]} 11. Bb1 {[%clk 0:02:50]}  cxd4 {[%clk 0:02:13]} 12. exd4 {[%clk 0:02:51]}  b6 {[%clk 0:02:11]} 13. Bg5 {[%clk 0:02:50]}  Bb7 {[%clk 0:02:07]} 14. Ne5 {[%clk 0:02:50]}  h6 {[%clk 0:01:59]} 15. Bxh6 {[%clk 0:02:38]}  Nbd5 {[%clk 0:01:41]} 16. Bg5 {[%clk 0:01:57]}  Nxc3 {[%clk 0:01:35]} 17. bxc3 {[%clk 0:01:58]}  Rc8 {[%clk 0:01:35]} 18. Qd3 {[%clk 0:01:56]}  Qd5 {[%clk 0:01:30]} 19. f3 {[%clk 0:01:52]}  Rfd8 {[%clk 0:01:21]} 20. Ba2 {[%clk 0:01:35]}  Qa5 {[%clk 0:01:20]} 21. Nxf7 {[%clk 0:01:30]}  Bd5 {[%clk 0:00:42]} 22. Nxd8 {[%clk 0:01:20]}  Bxa2 {[%clk 0:00:29]} 23. Bxf6 {[%clk 0:01:19]}  Bxf6 {[%clk 0:00:29]} 24. Rxa2 {[%clk 0:01:09]}  Rxd8 {[%clk 0:00:28]} 25. Rxe6 {[%clk 0:01:06]}  Qd5 {[%clk 0:00:23]} 26. Rae2 {[%clk 0:01:05]}  b5 {[%clk 0:00:23]} 27. Qg6 {[%clk 0:01:04]}  Rf8 {[%clk 0:00:23]} 28. Re8 {[%clk 0:01:00]}  Bxd4+ {[%clk 0:00:14]} 29. Kf1 {[%clk 0:00:56]}  Bc5 {[%clk 0:00:12]} 30. Rxf8+ {[%clk 0:00:48]}  Bxf8 {[%clk 0:00:12]} 31. Qe6+ {[%clk 0:00:47]}  Qxe6 {[%clk 0:00:12]} 32. Rxe6 {[%clk 0:00:48]}  bxa4 {[%clk 0:00:13]} 33. Rxa6 {[%clk 0:00:48]}  a3 {[%clk 0:00:14]} 34. Kf2 {[%clk 0:00:49]}  Kf7 {[%clk 0:00:14]} 35. Ke2 {[%clk 0:00:49]}  Ke8 {[%clk 0:00:14]} 36. Kd3 {[%clk 0:00:50]}  Kd7 {[%clk 0:00:14]} 37. Kd4 {[%clk 0:00:49]}  Kc7 {[%clk 0:00:13]} 38. c4 {[%clk 0:00:50]}  g5 {[%clk 0:00:11]} 39. c5 {[%clk 0:00:49]}  Kb7 {[%clk 0:00:11]} 40. Rxa3 {[%clk 0:00:49]}  Kc6 {[%clk 0:00:11]} 41. Ra6+ {[%clk 0:00:48]}  Kb5 {[%clk 0:00:11]} 42. Rb6+ {[%clk 0:00:49]}  Ka5 {[%clk 0:00:12]} 43. Kd5 {[%clk 0:00:49]}  Be7 {[%clk 0:00:10]} 44. g4 {[%clk 0:00:48]}  Bd8 {[%clk 0:00:07]} 45. Rb7 {[%clk 0:00:48]}  Bf6 {[%clk 0:00:07]} 46. c6 {[%clk 0:00:49]}  Bd8 {[%clk 0:00:07]} 47. h3 {[%clk 0:00:50]}  Bf6 {[%clk 0:00:02]} 48. c7 {[%clk 0:00:50]} 1-0


[Site "https://www.chess.com"]

[Event "Titled Tuesday Blitz August 22 Early 2023"]
[White "Sipila, Vilka"]
[Black "Womacka, Mathias"]
[WhiteFideId "505455"]
[BlackFideId "4611390"]
[WhiteElo "2621"]
[BlackElo "2455"]
[Result "1-0"]
[Round "8"]
[TimeControl "180+1"]
[Date "2023.08.22"]
[WhiteClock "0:02:36"]
[BlackClock "0:01:37"]
[Board "101"]

1. Nc3 {[%clk 0:03:00]}  c5 {[%clk 0:02:59]} 2. Nf3 {[%clk 0:03:00]}  d5 {[%clk 0:02:57]} 3. d4 {[%clk 0:02:59]}  cxd4 {[%clk 0:02:57]} 4. Qxd4 {[%clk 0:02:59]}  Nf6 {[%clk 0:02:50]} 5. Bg5 {[%clk 0:02:59]}  Nc6 {[%clk 0:02:49]} 6. Qf4 {[%clk 0:02:55]}  e6 {[%clk 0:02:44]} 7. O-O-O {[%clk 0:02:54]}  Bd6 {[%clk 0:02:36]} 8. Qh4 {[%clk 0:02:54]}  h6 {[%clk 0:02:18]} 9. e4 {[%clk 0:02:54]}  O-O {[%clk 0:02:03]} 10. Bxf6 {[%clk 0:02:51]}  Qxf6 {[%clk 0:02:04]} 11. Qxf6 {[%clk 0:02:51]}  gxf6 {[%clk 0:02:04]} 12. exd5 {[%clk 0:02:52]}  Ne5 {[%clk 0:01:59]} 13. dxe6 {[%clk 0:02:50]}  Nxf3 {[%clk 0:01:54]} 14. Rxd6 {[%clk 0:02:49]}  Ne5 {[%clk 0:01:53]} 15. f4 {[%clk 0:02:44]}  Ng4 {[%clk 0:01:50]} 16. e7 {[%clk 0:02:41]}  Re8 {[%clk 0:01:49]} 17. Rd8 {[%clk 0:02:40]}  Be6 {[%clk 0:01:44]} 18. Rxa8 {[%clk 0:02:35]}  Rxa8 {[%clk 0:01:37]} 19. Bb5 {[%clk 0:02:36]} 1-0


[Site "https://www.chess.com"]

[Event "Titled Tuesday Blitz August 22 Early 2023"]
[White "Ribeiro, Matheus Mendes Domingues"]
[Black "Balla, Tamas-Kristof"]
[WhiteFideId "324226923"]
[BlackFideId "1208497"]
[WhiteElo "2562"]
[BlackElo "2448"]
[Result "1-0"]
[Round "8"]
[TimeControl "180+1"]
[Date "2023.08.22"]
[WhiteClock "0:00:26"]
[BlackClock "0:00:00"]
[Board "105"]

1. c4 {[%clk 0:02:58]}  c5 {[%clk 0:03:00]} 2. Nf3 {[%clk 0:02:56]}  Nc6 {[%clk 0:03:00]} 3. Nc3 {[%clk 0:02:55]}  g6 {[%clk 0:03:01]} 4. e3 {[%clk 0:02:55]}  Nf6 {[%clk 0:03:00]} 5. d4 {[%clk 0:02:55]}  cxd4 {[%clk 0:03:01]} 6. exd4 {[%clk 0:02:56]}  d5 {[%clk 0:03:01]} 7. cxd5 {[%clk 0:02:54]}  Nxd5 {[%clk 0:03:02]} 8. Bc4 {[%clk 0:02:55]}  Nxc3 {[%clk 0:02:58]} 9. Qb3 {[%clk 0:02:54]}  e6 {[%clk 0:02:56]} 10. bxc3 {[%clk 0:02:53]}  Bd7 {[%clk 0:02:52]} 11. Bd3 {[%clk 0:02:47]}  Bg7 {[%clk 0:02:18]} 12. Ba3 {[%clk 0:02:42]}  Ne7 {[%clk 0:02:18]} 13. O-O {[%clk 0:02:40]}  O-O {[%clk 0:02:04]} 14. Be4 {[%clk 0:02:30]}  Bc6 {[%clk 0:01:29]} 15. Bxc6 {[%clk 0:02:20]}  bxc6 {[%clk 0:01:30]} 16. Qc4 {[%clk 0:02:15]}  Re8 {[%clk 0:01:18]} 17. Bxe7 {[%clk 0:02:12]}  Qxe7 {[%clk 0:01:13]} 18. Rab1 {[%clk 0:02:12]}  Rac8 {[%clk 0:01:10]} 19. Qa6 {[%clk 0:02:05]}  c5 {[%clk 0:01:08]} 20. Rb7 {[%clk 0:02:04]}  Rc7 {[%clk 0:01:05]} 21. Rfb1 {[%clk 0:01:47]}  cxd4 {[%clk 0:01:01]} 22. cxd4 {[%clk 0:01:40]}  Rec8 {[%clk 0:00:52]} 23. h3 {[%clk 0:01:15]}  Qd8 {[%clk 0:00:12]} 24. Qxa7 {[%clk 0:00:40]}  Rxb7 {[%clk 0:00:10]} 25. Rxb7 {[%clk 0:00:41]}  Rc1+ {[%clk 0:00:08]} 26. Kh2 {[%clk 0:00:42]}  Qd6+ {[%clk 0:00:09]} 27. g3 {[%clk 0:00:42]}  Qd5 {[%clk 0:00:08]} 28. Qa8+ {[%clk 0:00:34]}  Bf8 {[%clk 0:00:08]} 29. Rb8 {[%clk 0:00:35]}  Qxa8 {[%clk 0:00:04]} 30. Rxa8 {[%clk 0:00:36]}  Kg7 {[%clk 0:00:04]} 31. Kg2 {[%clk 0:00:33]}  Ra1 {[%clk 0:00:02]} 32. Ra7 {[%clk 0:00:27]}  Bd6 {[%clk 0:00:00]} 33. Ng5 {[%clk 0:00:26]} 1-0


[Site "https://www.chess.com"]

[Event "Titled Tuesday Blitz August 22 Early 2023"]
[White "Begunov, Konstantin"]
[Black "Martinez Reyes, Pedro Ramon"]
[WhiteFideId "4118510"]
[BlackFideId "3901807"]
[WhiteElo "2441"]
[BlackElo "2553"]
[Result "0-1"]
[Round "8"]
[TimeControl "180+1"]
[Date "2023.08.22"]
[WhiteClock "0:00:07"]
[BlackClock "0:01:19"]
[Board "106"]

1. d4 {[%clk 0:03:00]}  Nf6 {[%clk 0:02:59]} 2. c4 {[%clk 0:03:00]}  c5 {[%clk 0:02:58]} 3. Nf3 {[%clk 0:03:01]}  cxd4 {[%clk 0:02:55]} 4. Nxd4 {[%clk 0:03:01]}  e5 {[%clk 0:02:55]} 5. Nb5 {[%clk 0:03:01]}  d5 {[%clk 0:02:54]} 6. cxd5 {[%clk 0:03:02]}  Bc5 {[%clk 0:02:53]} 7. d6 {[%clk 0:03:02]}  O-O {[%clk 0:02:50]} 8. Nc7 {[%clk 0:03:01]}  Nc6 {[%clk 0:02:44]} 9. Nxa8 {[%clk 0:02:59]}  Bxd6 {[%clk 0:02:44]} 10. Nc3 {[%clk 0:02:57]}  Bf5 {[%clk 0:02:43]} 11. e3 {[%clk 0:02:52]}  Nb4 {[%clk 0:02:42]} 12. Nb5 {[%clk 0:01:31]}  Nc2+ {[%clk 0:02:05]} 13. Ke2 {[%clk 0:01:31]}  Nxa1 {[%clk 0:02:06]} 14. Qxd6 {[%clk 0:01:22]}  Qxa8 {[%clk 0:02:05]} 15. Qxe5 {[%clk 0:01:16]}  Qc8 {[%clk 0:01:56]} 16. Nc3 {[%clk 0:00:49]}  Re8 {[%clk 0:01:52]} 17. Qf4 {[%clk 0:00:43]}  Ne4 {[%clk 0:01:50]} 18. Bd2 {[%clk 0:00:28]}  Qc4+ {[%clk 0:01:39]} 19. Kf3 {[%clk 0:00:25]}  Nxd2+ {[%clk 0:01:38]} 20. Kg3 {[%clk 0:00:22]}  Nxf1+ {[%clk 0:01:36]} 21. Rxf1 {[%clk 0:00:19]}  Qxf1 {[%clk 0:01:36]} 22. Qxf5 {[%clk 0:00:20]}  Qc4 {[%clk 0:01:28]} 23. Nd5 {[%clk 0:00:19]}  Qe4 {[%clk 0:01:22]} 24. Qd7 {[%clk 0:00:11]}  Qe6 {[%clk 0:01:20]} 25. Qxb7 {[%clk 0:00:10]}  h5 {[%clk 0:01:19]} 26. Nf4 {[%clk 0:00:07]}  Qg4# {[%clk 0:01:19]} 0-1


[Site "https://www.chess.com"]